lending/lending_fUSD_20240610
["ID","MTS","AMOUNT","RATE_DAILY","PERIOD"]
[328914789,1717986645409,-4382.22200152,0.00014,2]
[328914790,1717986645421,-2042.97896879,0.00014,2]
[328914800,1717986645615,-9138.050456,0.00014,2]
[328914982,1717986741406,152.88,0.00011494,2]
[328914983,1717986997044,951.75620783,0.0001,2]
[328914996,1717987232975,480.86,0.00010967,2]
[328914997,1717987574251,160.65,0.0003,90]
[328914998,1717987628174,-482.00237009,0.00012541,2]
[328914999,1717987628196,-864.61064937,0.00012541,2]
[328915000,1717987628218,-355.79,0.00012542,2]
[328915001,1717987628241,-537.93793091,0.00012605,2]
[328915002,1717987628266,-178.29,0.00012647,2]
[328915003,1717987628290,-3136.42,0.00012652,2]
[328915004,1717987628315,-154.42,0.00012664,2]
[328915005,1717987628339,-800.0,0.0001267,2]
[328915006,1717987628363,-154.42,0.00012796,2]
[328915007,1717987628386,-424.14,0.00012829,2]
[328915008,1717987628409,-154.42,0.00012928,2]
[328915009,1717987628432,-1019.0077,0.00012969,2]
[328915010,1717987628455,-250.0,0.00013017,2]
[328915011,1717987628478,-150.0,0.00013041,2]
[328915012,1717987628503,-154.42,0.0001306,2]
[328915013,1717987628527,-296.81340302,0.00013067,2]
[328915014,1717987628548,-500.0,0.00013069,2]
[328915015,1717987628571,-7754.19098781,0.00013069,2]
[328915016,1717987646242,-628.49267898,0.00013067,2]
[328915017,1717987646266,-481.85167187,0.00013067,2]
[328915018,1717987646292,-155.37726229,0.00013068,2]
[328915019,1717987646317,-337.62273965,0.00013069,2]
[328915020,1717987646340,-15639.38587341,0.00013069,2]
[328915022,1717987801306,456.81,0.00010777,2]
[328915027,1717987832472,-429.78706435,0.00012741,2]
[328915029,1717987832482,-155.0,0.00012742,2]
[328915031,1717987832492,-150.0,0.00012743,2]
[328915034,1717987832503,-332.85342867,0.00012803,2]
[328915057,1717987832752,-1541.9914002,0.00012803,2]
[328915058,1717987833044,-495.93206286,0.00012803,2]
[328915059,1717987833054,-416.34256605,0.00012808,2]
[328915060,1717987833067,-787.72537109,0.00012808,2]
[328915061,1717987833079,-638.49582452,0.00012808,2]
[328915062,1717987833345,-770.06429679,0.00012808,2]
[328915064,1717987833355,-456.81,0.00013041,2]
[328915066,1717987833364,-38.04783469,0.00013066,2]
[328915068,1717987833377,-261.95216531,0.00013066,2]
[328915069,1717987833387,-497.8924059,0.00013067,2]
[328915104,1717987838818,-786.3940397,0.0001274,2]
[328915105,1717987838828,-102.1060403,0.00013067,2]
[328915106,1717987838840,-1466.1009,0.00013067,2]
[328915107,1717987838852,-262.65011809,0.00013067,2]
[328915108,1717987838864,-1515.97596609,0.00013067,2]
[328915109,1717987838874,-1000.0,0.00013067,2]
[328915110,1717987838884,-150.0,0.00013068,2]
[328915111,1717987838898,-7288.44757274,0.00013069,2]
[328915112,1717987839203,-1435.40784565,0.00013069,2]
[328915113,1717987839219,-8078.09939707,0.00013069,2]
[328915114,1717987839236,-6688.73988323,0.00013069,2]
[328915115,1717987839720,-42856.80801135,0.00013069,2]
[328915118,1717987842796,-251.8809381,0.00013069,2]
[328915127,1717987844988,-3255.26744422,0.00013069,2]
[328915128,1717987845002,-524.32087368,0.00013069,2]
[328915129,1717987845505,-64722.59337274,0.00013069,2]
[328915130,1717987845517,-1000.0,0.00013069,2]
[328915131,1717987845528,-2500.0,0.00013069,2]
[328915132,1717987845540,-245000.0,0.00013169,2]
[328915133,1717987845554,-2492.3692,0.00013169,2]
[328915134,1717987845565,-154.42,0.00013192,2]
[328915135,1717987845576,-499.99,0.0001323,2]
[328915136,1717987845587,-150.99,0.0001323,2]
[328915137,1717987845598,-465.0,0.00013253,2]
[328915138,1717987845609,-9269.95130949,0.00013269,2]
[328915139,1717987845624,-200.0,0.00013317,2]
[328915140,1717987845636,-250.0,0.00013322,2]
[328915141,1717987845647,-154.42,0.00013324,2]
[328915142,1717987845659,-335.4252101,0.000136,2]
[328915143,1717987845670,-165.67,0.00013699,2]
[328915144,1717987845682,-180.19,0.00013699,2]
[328915145,1717987845694,-18985.2261,0.000137,2]
[328915146,1717987845706,-13144.207,0.000137,2]
[328915147,1717987845718,-464.90862689,0.00013789,2]
[328915148,1717987845729,-1009.0,0.000138,2]
[328915149,1717987845740,-204.17,0.00013841,2]
[328915150,1717987845751,-200.0,0.00013888,2]
[328915151,1717987845763,-1000.0,0.00013888,2]
[328915152,1717987845774,-500.0,0.00013888,2]
[328915153,1717987845785,-200.0,0.00013888,2]
[328915154,1717987845796,-356.0707,0.000139,2]
[328915155,1717987845808,-7101.4892,0.000139,2]
[328915156,1717987845819,-6687.7522,0.000139,2]
[328915157,1717987845830,-419.9773887,0.000139,2]
[328915158,1717987845841,-850.87,0.00013941,2]
[328915159,1717987845852,-417.44,0.00013941,2]
[328915160,1717987845863,-417.44,0.00013941,2]
[328915161,1717987845874,-850.87,0.00013941,2]
[328915162,1717987845886,-850.87,0.00013941,2]
[328915163,1717987845897,-417.44,0.00013941,2]
[328915164,1717987845908,-850.87,0.00013941,2]
[328915165,1717987845919,-417.44,0.00013941,2]
[328915166,1717987845930,-850.87,0.00013941,2]
[328915167,1717987845941,-417.44,0.00013941,2]
[328915168,1717987845952,-417.44,0.00013941,2]
[328915169,1717987845962,-850.87,0.00013941,2]
[328915170,1717987845973,-850.87,0.00013941,2]
[328915171,1717987845984,-417.44,0.00013941,2]
[328915172,1717987845996,-850.87,0.00013941,2]
[328915173,1717987846015,-417.44,0.00013941,2]
[328915174,1717987846026,-209.75378698,0.00013956,2]
[328915176,1717987846037,-253.7643184,0.0001399,2]
[328915178,1717987846048,-218.47939903,0.00013999,2]
[328915180,1717987846061,-1031.0344506,0.00013999,2]
[328915182,1717987846072,-1066.1268326,0.00013999,5]
[328915184,1717987846083,-1066.1268326,0.00013999,5]
[328915187,1717987846094,-1063.62545615,0.00013999,5]
[328915190,1717987846105,-312323.17135518,0.00014,2]
[328915207,1717987846274,-1048.21934277,0.00014,2]
[328915208,1717987846288,-693089.48654637,0.00014,2]
[328915209,1717987846302,-108370.42834926,0.00014,2]
[328915213,1717987846373,-949.34322426,0.000139,2]
[328915215,1717987846384,-323200.98341389,0.00014,2]
[328915217,1717987846399,-174699.3471748,0.00014,2]
[328915219,1717987846411,-3000.0145,0.00014,2]
[328915256,1717987848890,2615.89796957,0.00012,2]
[328915269,1717987850249,-156.23310905,0.00013068,2]
[328915270,1717987850258,-1116.8762851,0.00013899,2]
[328915271,1717987850834,-1257.00174152,0.00013899,2]
[328915272,1717987850844,-430.35983753,0.00013899,2]
[328915273,1717987850854,-1114.22722947,0.00014,2]
[328915278,1717988184613,151.0,0.00025846,30]
[328915279,1717988184691,151.0,0.00025329,120]
[328915280,1717988341232,411.12,0.00011672,2]
[328915281,1717988752174,-155.0,0.00013022,2]
[328915282,1717988752194,-551.9435641,0.00013023,2]
[328915283,1717988844292,-155.0,0.00013018,2]
[328915284,1717988844318,-208.21772939,0.00013018,2]
[328915285,1717988844343,-345.72385954,0.00013019,2]
[328915286,1717988844367,-7543.72254498,0.00013064,2]
[328915287,1717988844397,-300.0,0.00013065,2]
[328915288,1717988844423,-150.0,0.00013066,2]
[328915289,1717988844449,-238.82849022,0.00013067,2]
[328915290,1717988844475,-156.08444601,0.00013067,2]
[328915291,1717988844500,-155.0,0.00013067,2]
[328915292,1717988844524,-587.90828652,0.00013068,2]
[328915293,1717988844553,-880.84475534,0.00013069,2]
[328915294,1717988902937,390.56,0.00011766,2]
[328915297,1717989033225,-681.39069848,0.00013066,2]
[328915298,1717989033237,-105.00334122,0.00013066,2]
[328915299,1717989033248,-196.90307594,0.00013067,2]
[328915300,1717989033260,-103.09692406,0.00013067,2]
[328915301,1717989033269,-441.40743891,0.00013067,2]
[328915302,1717989033280,-162.47403301,0.00013067,2]
[328915303,1717989033289,-388.84447545,0.00013067,2]
[328915304,1717989033299,-171.71574975,0.00013068,2]
[328915305,1717989033309,-1188.55979064,0.00013068,2]
[328915306,1717989033321,-3064.60664569,0.00013068,2]
[328915307,1717989033332,-2522.06617273,0.00013068,2]
[328915308,1717989033344,-849.97520222,0.00013068,2]
[328915309,1717989033354,-6534.95036362,0.00013069,2]
[328915310,1717989033366,-13431.30668104,0.00013069,2]
[328915311,1717989033376,-250.0,0.00013424,2]
[328915312,1717989033386,-472.12,0.00013468,2]
[328915313,1717989033396,-499.99,0.00013468,2]
[328915314,1717989033405,-1429.49,0.00013533,2]
[328915315,1717989033415,-178.27,0.00013572,2]
[328915316,1717989033425,-250.0,0.00013668,2]
[328915317,1717989033434,-1095.65,0.00013699,2]
[328915318,1717989033444,-1943.59328,0.0001386,2]
[328915319,1717989033454,-500.0,0.00013888,2]
[328915320,1717989033464,-200.0,0.00013888,2]
[328915321,1717989033474,-184.2432829,0.000139,2]
[328915322,1717989033484,-745.1706,0.000139,2]
[328915323,1717989033493,-384.97927303,0.000139,2]
[328915324,1717989033503,-192.12,0.0001399,2]
[328915325,1717989033513,-169.53480669,0.00013998,2]
[328915326,1717989033524,-155.52564559,0.00013998,2]
[328915327,1717989033534,-599.19901122,0.00013998,2]
[328915328,1717989033543,-288.45606622,0.00013998,2]
[328915329,1717989033553,-526.29728753,0.00013998,2]
[328915330,1717989033563,-157.62684682,0.00013998,2]
[328915331,1717989033573,-309.27138856,0.00013998,2]
[328915332,1717989033583,-406.13051263,0.00013998,2]
[328915333,1717989033594,-2190.38242192,0.00013998,2]
[328915334,1717989033604,-201.94300209,0.00013998,2]
[328915335,1717989033613,-167.24815434,0.00013998,2]
[328915336,1717989033623,-196.63145913,0.00013999,2]
[328915337,1717989033633,-8580.27841416,0.00014,2]
[328915338,1717989033646,-60263.09069629,0.00014,2]
[328915339,1717989033658,-1212.8,0.00014,2]
[328915340,1717989033670,-1666.21666469,0.00014,2]
[328915341,1717989033682,-741.8811006,0.00014,2]
[328915342,1717989033745,-41007.09035459,0.00014,2]
[328915343,1717989033758,-2748.05976961,0.00014,2]
[328915344,1717989033770,-376.2556118,0.00014,2]
[328915345,1717989033782,-2700.39942654,0.00014,2]
[328915346,1717989033794,-7210.56446147,0.00014,2]
[328915347,1717989033806,-34896.37939621,0.00014,2]
[328915348,1717989033819,-2197.83270384,0.00014,2]
[328915349,1717989033831,-32642.0,0.00014,2]
[328915350,1717989033844,-25797.64435455,0.00014,2]
[328915351,1717989033854,-447459.71145818,0.00014,2]
[328915352,1717989033863,-500.0,0.00014,2]
[328915353,1717989033873,-1146.31000094,0.00014,2]
[328915354,1717989033884,-20260.85855017,0.00014,2]
[328915355,1717989033894,-336938.88340204,0.00014,2]
[328915356,1717989033907,-1055.77818754,0.00014,2]
[328915357,1717989033919,-929.68797604,0.00014,2]
[328915359,1717989034340,-11085.82667898,0.00014,2]
[328915405,1717989039621,-176.96831321,0.00013999,2]
[328915406,1717989039631,-5081.20487744,0.00014,2]
[328915407,1717989040179,-1425.25188922,0.00014,2]
[328915408,1717989040191,-6453.84807915,0.00014,2]
[328915409,1717989040204,-2022.87376191,0.00014,2]
[328915410,1717989040216,-1829.6655901,0.00014,2]
[328915411,1717989040227,-438.29,0.00014,2]
[328915412,1717989040238,-11827.7989975,0.00014,2]
[328915413,1717989040249,-280.23952623,0.00014,2]
[328915414,1717989040261,-5079.54675641,0.00014,2]
[328915415,1717989040741,-3180.47803298,0.00014,2]
[328915418,1717989040754,-5358.50524639,0.00014,2]
[328915420,1717989040767,-853.08727691,0.00014,2]
[328915424,1717989043431,-312.98928866,0.000139,2]
[328915425,1717989043441,-159.27148189,0.00013999,2]
[328915426,1717989043451,-3424.31682944,0.00014,2]
[328915427,1717989043463,-2161.59645686,0.00014,2]
[328915428,1717989043476,-1025.73764896,0.00014,2]
[328915429,1717989043487,-3379.91944124,0.00014,2]
[328915430,1717989043498,-7138.08143409,0.00014,2]
[328915431,1717989043510,-831.56259557,0.00014,2]
[328915432,1717989043522,-258.11,0.00014,2]
[328915435,1717989045099,-1882.33238827,0.00014,2]
[328915436,1717989045112,-1434.52875918,0.00014,2]
[328915437,1717989045125,-102714.87605316,0.00014,2]
[328915438,1717989045138,-604.33773141,0.00014,2]
[328915439,1717989045150,-1253.73407752,0.00014,2]
[328915440,1717989045161,-2358.142,0.00014,2]
[328915441,1717989045173,-1628.673527,0.00014,2]
[328915442,1717989045672,-327.4245207,0.00014,2]
[328915443,1717989045685,-378.223526,0.00014,2]
[328915444,1717989045698,-1071.144,0.00014,2]
[328915445,1717989045710,-708.505,0.00014,2]
[328915446,1717989045723,-74009.55638664,0.00014,2]
[328915447,1717989045735,-489.47653646,0.00014,2]
[328915449,1717989045747,-187557.50401675,0.00014,2]
[328915452,1717989045759,-1487.92434299,0.00014,2]
[328915453,1717989045771,-387.72733961,0.00014,2]
[328915454,1717989045783,-1191.01580158,0.00014,2]
[328915460,1717989047457,-644.05,0.00013999,2]
[328915461,1717989047470,-351.22370167,0.00013999,2]
[328915462,1717989047482,-123.36692696,0.00013999,2]
[328915463,1717989047492,-150.01,0.00013999,2]
[328915464,1717989047502,-871.23693764,0.00014,2]
[328915465,1717989047515,-769.05650803,0.00014,2]
[328915466,1717989047526,-417.50900005,0.00014,2]
[328915467,1717989047538,-680.44298611,0.00014,2]
[328915468,1717989047948,-967.0,0.00014,2]
[328915469,1717989047960,-544.68072996,0.00014,2]
[328915470,1717989047972,-295.12565298,0.00014,2]
[328915471,1717989047984,-501.50580398,0.00014,2]
[328915472,1717989047995,-210021.85343707,0.00014,2]
[328915473,1717989048005,-7483.57939372,0.00014,2]
[328915474,1717989048015,-21708.3512581,0.00014009,2]
[328915475,1717989048025,-215.7511532,0.00014009,2]
[328915476,1717989048035,-390.56,0.0001403,2]
[328915477,1717989048045,-171.01,0.00014168,2]
[328915478,1717989048058,-420.0,0.00014374,2]
[328915479,1717989048068,-1066.1268326,0.00014999,5]
[328915480,1717989048078,-53813.61144328,0.00015,2]
[328915481,1717989048090,-12738.70289753,0.00015,2]
[328915482,1717989048103,-6037.72443787,0.00015,2]
[328915483,1717989048114,-13413.10303866,0.00015,2]
[328915484,1717989048125,-605.50432414,0.00015,2]
[328915485,1717989048137,-385.86354147,0.00015,2]
[328915486,1717989048148,-557.68744557,0.00015,2]
[328915487,1717989048433,-2155.90799678,0.00015,2]
[328915488,1717989048445,-1900.443,0.00015,2]
[328915489,1717989048457,-3223.51638071,0.00015,2]
[328915490,1717989048469,-1156.73114175,0.00015,2]
[328915491,1717989480114,622.59,0.00011093,2]
[328915492,1717989566224,155.0,0.00011093,2]
[328915493,1717989582112,155.369048,0.00011093,2]
[328915494,1717989637193,162.84,0.00010307,2]
[328915495,1717989870172,-999.99174,0.00012583,2]
[328915497,1717989954132,-209.52678916,0.00012551,2]
[328915498,1717989954157,-155.0,0.00012552,2]
[328915499,1717989954179,-51.09119059,0.00012552,2]
[328915500,1717989957093,1000.0,0.00012463,2]
[328915501,1717989973074,250.0,0.00012435,2]
[328915505,1717990044931,591.46,0.00010502,2]
[328915508,1717990145116,-155.0,0.00012525,2]
[328915509,1717990145136,-282.95218659,0.00012525,2]
[328915510,1717990145156,-155.0,0.00012525,2]
[328915511,1717990145177,-155.0,0.00012525,2]
[328915512,1717990145198,-155.0,0.00012525,2]
[328915513,1717990145220,-267.31376338,0.00012526,2]
[328915514,1717990145241,-155.0,0.00012526,2]
[328915515,1717990145262,-155.0,0.00012527,2]
[328915516,1717990145283,-217.89154337,0.00012527,2]
[328915517,1717990145304,-269.27123607,0.00012527,2]
[328915518,1717990145327,-155.0,0.00012527,2]
[328915520,1717990145350,-155.0,0.00012528,2]
[328915521,1717990145373,-645.83379313,0.00012528,2]
[328915522,1717990145394,-328.03196452,0.00012528,2]
[328915523,1717990145416,-155.0,0.00012529,2]
[328915524,1717990145438,-273.0,0.0001253,2]
[328915525,1717990145459,-155.0,0.0001253,2]
[328915526,1717990145480,-155.0,0.0001253,2]
[328915527,1717990145504,-525.4044301,0.00012531,2]
[328915528,1717990145526,-177.47863438,0.00012531,2]
[328915529,1717990145549,-338.68648196,0.00012532,2]
[328915530,1717990145572,-241.63233639,0.00012532,2]
[328915531,1717990145596,-150.0,0.00012542,2]
[328915532,1717990145619,-150.0,0.00012542,2]
[328915533,1717990145641,-195.79238693,0.00012543,2]
[328915534,1717990145665,-5386.06482253,0.00012543,2]
[328915535,1717990145688,-2451.31,0.00012554,2]
[328915536,1717990145711,-178.01,0.00012557,2]
[328915537,1717990145732,-191.22,0.0001258,2]
[328915538,1717990145755,-219.75251246,0.00012581,2]
[328915539,1717990145777,-155.0,0.00012581,2]
[328915540,1717990145798,-158.11955394,0.00012581,2]
[328915541,1717990145821,-204.25280186,0.00012582,2]
[328915542,1717990145847,-3576.03756703,0.00012583,2]
[328915543,1717990148961,437.97,0.00012356,2]
[328915544,1717990151116,-792.46810918,0.00012524,2]
[328915545,1717990151140,-1392.58693338,0.00012524,2]
[328915546,1717990151165,-3110.96047467,0.00012583,2]
[328915547,1717990160578,-156.10634162,0.00012581,2]
[328915548,1717990160599,-274.89751879,0.00012582,2]
[328915549,1717990160620,-285.24365879,0.00012582,2]
[328915550,1717990160640,-246.78969473,0.00012582,2]
[328915551,1717990160664,-5991.86858607,0.00012583,2]
[328915552,1717990162128,-327.44604499,0.00012581,2]
[328915553,1717990162152,-7089.48257267,0.00012583,2]
[328915557,1717990232858,-144.18905956,0.00012583,2]
[328915558,1717990232869,-158.73412313,0.00012664,2]
[328915559,1717990232878,-556.26,0.0001276,2]
[328915560,1717990232888,-200.0,0.00012762,2]
[328915561,1717990232899,-475.47768677,0.00012766,2]
[328915562,1717990232911,-115.98231323,0.00012766,2]
[328915563,1717990232921,-155.21,0.00012766,2]
[328915564,1717990232931,-155.21,0.00012771,2]
[328915566,1717990232941,-122.90565747,0.00012776,2]
[328915568,1717990233461,-32.30434253,0.00012776,2]
[328915569,1717990233471,-155.21,0.00012781,2]
[328915570,1717990233479,-155.21,0.00012786,2]
[328915571,1717990233489,-155.21,0.00012791,2]
[328915572,1717990233499,-155.21,0.00012796,2]
[328915573,1717990233509,-155.21,0.000128,2]
[328915574,1717990233519,-155.21,0.00012805,2]
[328915575,1717990233528,-155.21,0.0001281,2]
[328915576,1717990233538,-155.21,0.00012815,2]
[328915577,1717990233547,-155.21,0.0001282,2]
[328915578,1717990233561,-155.21,0.00012825,2]
[328915579,1717990233570,-155.21,0.0001283,2]
[328915580,1717990233580,-438.28,0.00012834,2]
[328915581,1717990233590,-171.01,0.00012912,2]
[328915582,1717990233601,-250.0,0.00013024,2]
[328915583,1717990233611,-177.47863438,0.00013136,2]
[328915584,1717990233621,-155.0,0.00013136,2]
[328915585,1717990233633,-168.58,0.00013137,2]
[328915586,1717990233643,-164.49,0.00013465,2]
[328915587,1717990233654,-157.99311151,0.00013647,2]
[328915588,1717990233664,-735.59,0.00013699,2]
[328915589,1717990233673,-567.34866663,0.00013777,2]
[328915590,1717990233683,-243.44,0.00013779,2]
[328915591,1717990233693,-268.31062071,0.0001398,2]
[328915592,1717990233703,-527.90103393,0.0001398,2]
[328915593,1717990233713,-311.80940369,0.0001398,2]
[328915594,1717990233724,-156.78524809,0.0001398,2]
[328915595,1717990233735,-159.2102382,0.0001398,2]
[328915596,1717990233745,-334.88645816,0.0001398,2]
[328915597,1717990233755,-237.45762808,0.0001398,2]
[328915598,1717990233765,-87.48329678,0.0001398,2]
[328915599,1717990238957,-309.07956318,0.0001398,2]
[328915600,1717990238968,-120.67192901,0.0001398,2]
[328915601,1717990238981,-578.85289143,0.0001398,2]
[328915602,1717990238992,-288.93223031,0.0001398,2]
[328915603,1717990239003,-359.61676156,0.0001398,2]
[328915604,1717990239013,-197.36864743,0.0001398,2]
[328915605,1717990239024,-181.52771032,0.0001398,2]
[328915606,1717990239035,-253.55789341,0.0001398,2]
[328915607,1717990239045,-552.95156111,0.0001398,2]
[328915608,1717990239056,-162.51769779,0.0001398,2]
[328915609,1717990239067,-177.75473335,0.0001398,2]
[328915610,1717990239078,-1008.69237273,0.00013981,2]
[328915611,1717990239089,-1416.20525643,0.00013981,2]
[328915612,1717990239100,-27621.53568986,0.00013982,2]
[328915613,1717990239111,-4751.74555571,0.00013985,2]
[328915614,1717990239122,-871.01833579,0.00013995,2]
[328915615,1717990239132,-325.29764742,0.00013996,2]
[328915616,1717990239143,-155.0,0.00013996,2]
[328915617,1717990239158,-236.31144653,0.00013996,2]
[328915618,1717990239169,-269.6222555,0.00013996,2]
[328915619,1717990239181,-156.21891339,0.00013996,2]
[328915620,1717990239192,-1262.96264394,0.00013996,2]
[328915621,1717990239203,-293.18811258,0.00013997,2]
[328915622,1717990239214,-628.35220135,0.00013997,2]
[328915623,1717990239224,-257.36093584,0.00013997,2]
[328915624,1717990239235,-168.17294348,0.00013998,2]
[328915625,1717990239246,-1168.66716151,0.00013998,2]
[328915626,1717990239258,-157.03463333,0.00013998,2]
[328915627,1717990239269,-269.00985156,0.00013998,2]
[328915628,1717990239279,-251.28886194,0.00013998,2]
[328915629,1717990239290,-354.89008786,0.00013998,2]
[328915630,1717990239301,-309.96520443,0.00013998,2]
[328915631,1717990239311,-156.103367,0.00013998,2]
[328915632,1717990239322,-157.2034799,0.00013998,2]
[328915633,1717990239333,-156.33311522,0.00013998,2]
[328915634,1717990239343,-372.26659834,0.00013998,2]
[328915635,1717990239354,-688.50873059,0.00013998,2]
[328915636,1717990239365,-539.79988692,0.00013998,2]
[328915637,1717990239376,-163.95033284,0.00013998,2]
[328915638,1717990239387,-3847.39485904,0.00013998,2]
[328915639,1717990239402,-712.29463692,0.00013998,2]
[328915640,1717990239414,-580.79166872,0.00013998,2]
[328915641,1717990239426,-653.55531824,0.00013998,2]
[328915642,1717990239438,-770.101539,0.00013998,2]
[328915643,1717990239450,-414.0846342,0.00013998,2]
[328915645,1717990239869,-2279.75919708,0.00013998,2]
[328915647,1717990239879,-290.11380419,0.00013998,2]
[328915648,1717990239890,-296.7429459,0.00013998,2]
[328915651,1717990239903,-162.78239287,0.00013998,2]
[328915652,1717990239913,-160.53255952,0.00013998,2]
[328915654,1717990239924,-162.74331652,0.00013998,2]
[328915657,1717990239935,-182.29961109,0.00013998,2]
[328915659,1717990239949,-231.15208675,0.00013998,2]
[328915661,1717990239962,-172.23169385,0.00013998,2]
[328915662,1717990239977,-437.49809604,0.00013998,2]
[328915663,1717990239991,-163.40351491,0.00013998,2]
[328915664,1717990240005,-293.40453425,0.00013998,2]
[328915665,1717990240017,-163.9840252,0.00013998,2]
[328915666,1717990240029,-155.61375484,0.00013998,2]
[328915667,1717990240043,-158.55938881,0.00013998,2]
[328915668,1717990240055,-157.96496199,0.00013998,2]
[328915669,1717990240068,-239.66069874,0.00013998,2]
[328915670,1717990240080,-2291.55341745,0.00013998,2]
[328915671,1717990240471,-131.88978923,0.00013998,2]
[328915672,1717990240487,-284.79397866,0.00013998,2]
[328915673,1717990240501,-191.79417429,0.00013998,2]
[328915674,1717990240513,-156.23331299,0.00013998,2]
[328915675,1717990240527,-155.75434719,0.00013998,2]
[328915676,1717990240540,-173.53854836,0.00013998,2]
[328915677,1717990240554,-202.0578237,0.00013998,2]
[328915678,1717990240567,-361.80703663,0.00013998,2]
[328915679,1717990240582,-522.99818893,0.00013998,2]
[328915680,1717990240596,-243.96742724,0.00013998,2]
[328915681,1717990240611,-155.44128107,0.00013998,2]
[328915682,1717990240623,-155.63998362,0.00013998,2]
[328915683,1717990240636,-16.45910843,0.00013998,2]
[328915685,1717990240986,-189.92346811,0.00013998,2]
[328915687,1717990241000,-202.51887079,0.00013998,2]
[328915689,1717990241012,-199.29340465,0.00013998,2]
[328915691,1717990241024,-308.8860372,0.00013998,2]
[328915694,1717990241038,-203.01291219,0.00013998,2]
[328915696,1717990241051,-172.45522388,0.00013998,2]
[328915698,1717990241064,-193.26203497,0.00013998,2]
[328915700,1717990241076,-238.40639541,0.00013999,2]
[328915702,1717990241089,-467.98696889,0.00014,2]
[328915703,1717990241103,-5868.68455381,0.00014,2]
[328915704,1717990241119,-5322.20930375,0.00014,2]
[328915710,1717990244528,-305.92309464,0.00014,2]
[328915711,1717990244543,-1930.44243095,0.00014,2]
[328915739,1717990572949,553.45,0.00011759,2]
[328915741,1717990682372,59482.01861579,0.00011759,2]
[328915748,1717991149180,-155.0,0.00013222,2]
[328915749,1717991149204,-155.0,0.00013222,2]
[328915750,1717991149228,-67.46677547,0.00013223,2]
[328915755,1717991219908,568.04,0.00011421,2]
[328915758,1717991225117,-482.00237009,0.00013219,2]
[328915759,1717991225139,-448.90813341,0.0001322,2]
[328915760,1717991225162,-942.09246201,0.0001322,2]
[328915761,1717991225184,-296.81340302,0.00013221,2]
[328915762,1717991225206,-490.61954782,0.00013229,2]
[328915763,1717991225228,-677.947979,0.0001323,2]
[328915764,1717991225252,-250.0,0.00013367,2]
[328915765,1717991225275,-287.75,0.00013411,2]
[328915766,1717991225301,-150.0,0.00013425,2]
[328915767,1717991225325,-1633.87,0.00013439,2]
[328915768,1717991225348,-800.0,0.00013461,2]
[328915769,1717991225371,-568.04,0.00013685,2]
[328915770,1717991225394,-367.79,0.00013699,2]
[328915771,1717991225417,-2850.9213,0.000138,2]
[328915772,1717991225440,-200.0,0.00013829,2]
[328915773,1717991225463,-167.12061151,0.000139,2]
[328915774,1717991225485,-6628.8810293,0.000139,2]
[328915775,1717991235204,-864.61064937,0.00013219,2]
[328915776,1717991235230,-871.1189707,0.000139,2]
[328915777,1717991235256,-931.56922473,0.000139,2]
[328915778,1717991235280,-187.06820988,0.000139,2]
[328915779,1717991235305,-500.0,0.000139,2]
[328915780,1717991235329,-190.03612732,0.00013921,2]
[328915781,1717991235354,-152.1,0.0001399,2]
[328915782,1717991235378,-163.66,0.0001399,3]
[328915783,1717991235402,-2335.29723679,0.00013998,2]
[328915784,1717991235425,-333.98930856,0.00013998,2]
[328915785,1717991235448,-218.10607465,0.00013998,2]
[328915786,1717991235471,-3063.88513928,0.00013998,2]
[328915787,1717991235493,-155.90582658,0.00013998,2]
[328915788,1717991235516,-360.07437915,0.00013998,2]
[328915789,1717991235540,-163.1033716,0.00013998,2]
[328915790,1717991235562,-155.37726229,0.00013998,2]
[328915791,1717991235586,-311.92577569,0.00013998,2]